fUST/lending_fUST_20260210
["ID","MTS","AMOUNT","RATE_DAILY","PERIOD"]
[404889775,1770652805160,500.0,0.00025205,2]
[404889776,1770652805515,500.0,0.00025205,2]
[404889777,1770652805862,500.0,0.00025205,2]
[404889778,1770652806223,289.3985691,0.00025205,2]
[404889779,1770652812125,503.18096716,0.00013273,2]
[404889780,1770652818786,357.18421925,0.00013273,2]
[404889781,1770652835007,292.09188,0.00027,120]
[404889783,1770652877718,500.0,0.00013273,2]
[404889784,1770652881383,204.8313073,0.0003,2]
[404889785,1770652944963,150.0,0.0002589,2]
[404889786,1770652945347,177.0,0.0002789,2]
[404889787,1770652955384,5000.0,0.00029,2]
[404889788,1770652977628,3600.56615694,0.00029,2]
[404889790,1770653038966,1072.43384306,0.00029,2]
[404889878,1770653110754,640.48402366,0.00013699,2]
[404889881,1770653157278,-300.0,0.00028999,2]
[404889882,1770653157300,-700.0,0.00028999,2]
[404889883,1770653160090,-500.0,0.00028999,2]
[404889884,1770653160111,-500.0,0.00029,2]
[404889885,1770653161782,-1000.0,0.00029,2]
[404889886,1770653163651,-300.0,0.00028999,2]
[404889887,1770653163671,-300.0,0.00028999,2]
[404889888,1770653163691,-400.0,0.00029,2]
[404889889,1770653165123,-1000.0,0.00029,2]
[404889890,1770653166503,-1000.0,0.00029,2]
[404889891,1770653169142,-1000.0,0.00029,2]
[404889892,1770653170750,-1000.0,0.00029,2]
[404889893,1770653172140,-1000.0,0.00029,2]
[404889894,1770653173475,-1000.0,0.00029,2]
[404889895,1770653223778,625.80362414,0.00013699,2]
[404889896,1770653258000,150.0,0.0002589,2]
[404889897,1770653258388,177.0,0.0002789,2]
[404890017,1770653432417,-411.0,0.00028999,2]
[404890018,1770653432427,-262.41,0.00029,2]
[404890019,1770653432438,-552.1328479,0.00029,2]
[404890020,1770653432449,-2052.68111178,0.00029,2]
[404890021,1770653432460,-3421.90414894,0.00029,2]
[404890022,1770653432470,-204.0,0.0002989,2]
[404890023,1770653432479,-300.0,0.00029999,2]
[404890024,1770653432488,-500.0,0.0003,2]
[404890025,1770653432498,-1000.0,0.00030435,30]
[404890026,1770653432507,-199.09816796,0.00030778,2]
[404890027,1770653432516,-231.0,0.0003189,2]
[404890028,1770653432526,-516.14908518,0.00032158,2]
[404890029,1770653432535,-929.06835332,0.00032158,2]
[404890030,1770653432544,-1651.67707257,0.00032158,2]
[404890031,1770653432555,-4440.10317203,0.00032158,2]
[404890045,1770653438398,-3791.69716111,0.00032158,2]
[404890046,1770653438475,-5220.98506369,0.00032158,2]
[404890047,1770653438485,-1134.0954599,0.00032321,2]
[404890048,1770653438495,-420.0,0.00032332,2]
[404890049,1770653438505,-231.30794238,0.00032993,2]
[404890050,1770653438514,-6410.66071644,0.00033052,2]
[404890051,1770653438524,-345.42617249,0.00033152,2]
[404890052,1770653438534,-621.76711048,0.00033152,2]
[404890053,1770653438544,-1105.36375197,0.00033152,2]
[404890054,1770653438554,-177.00038499,0.000332,117]
[404890055,1770653438563,-500.0,0.00033299,2]
[404890056,1770653438572,-255.6432296,0.00033314,2]
[404890057,1770653438582,-319.0,0.00033386,2]
[404890058,1770653438592,-414.15751983,0.00033441,2]
[404890060,1770653438602,-506.81053139,0.0003369,15]
[404890061,1770653438612,-500.0,0.0003369,120]
[404890062,1770653438621,-500.0,0.0003369,120]
[404890063,1770653438630,-500.0,0.0003369,120]
[404890064,1770653438642,-500.0,0.0003369,10]
[404890065,1770653438653,-550.0,0.0003369,120]
[404890066,1770653438663,-1727.13086245,0.0003374,2]
[404890067,1770653438682,-3068.94539616,0.00034,2]
[404890068,1770653438694,-2580.74542589,0.00034025,2]
[404890069,1770653438704,-587.0,0.00034847,2]
[404890070,1770653438716,-200.0,0.00035,120]
[404890071,1770653438726,-2487.06844193,0.00035032,2]
[404890072,1770653438737,-423.21129415,0.00035163,2]
[404890073,1770653438747,-3716.27341329,0.00036025,2]
[404890074,1770653438757,-3385.17649041,0.00036325,2]
[404890075,1770653438767,-292.16369097,0.00036541,2]
[404890076,1770653438778,-600.0,0.00036608,30]
[404890077,1770653438788,-264.35193415,0.00036676,2]
[404890078,1770653438798,-1989.01484243,0.0003675,2]
[404890079,1770653438808,-500.0,0.000368,2]
[404890080,1770653438817,-2559.1727997,0.00036801,2]
[404890081,1770653438828,-159.3344612,0.00036801,2]
[404890082,1770653438843,-637.0,0.00037019,30]
[404890083,1770653438853,-336.83535937,0.00037164,2]
[404890084,1770653438863,-288.0,0.00037424,2]
[404890085,1770653438876,-500.0,0.00037498,2]
[404890086,1770653438886,-823.0,0.00037557,2]
[404890087,1770653438897,-4421.45500788,0.00037619,2]
[404890088,1770653438908,-288.0,0.00037661,120]
[404890089,1770653438919,-3327.41203692,0.0003776,2]
[404890090,1770653438929,-500.0,0.00037772,2]
[404890091,1770653438939,-288.0,0.00037877,7]
[404890092,1770653438950,-289.0,0.0003788,7]
[404890093,1770653438962,-500.0,0.00037896,2]
[404890094,1770653438972,-288.0,0.00037945,2]
[404890095,1770653438983,-583.32,0.00037998,120]
[404890096,1770653438993,-5058.26103475,0.00038024,2]
[404890097,1770653439004,-500.0,0.00038046,2]
[404890098,1770653439014,-288.0,0.00038239,7]
[404890099,1770653439024,-288.0,0.00038258,120]
[404890100,1770653439034,-500.0,0.0003832,2]
[404890101,1770653439044,-289.0,0.00038344,7]
[404890102,1770653439054,-288.0,0.00038372,2]
[404890103,1770653439063,-288.0,0.00038372,2]
[404890104,1770653439073,-289.0,0.00038414,2]
[404890105,1770653439083,-1125.36772389,0.00038506,2]
[404890106,1770653439095,-500.0,0.00038594,2]
[404890107,1770653439105,-288.0,0.00038687,2]
[404890108,1770653439115,-500.0,0.00038868,2]
[404890109,1770653439124,-289.0,0.0003889,2]
[404890110,1770653439134,-5595.90399435,0.00038911,2]
[404890111,1770653439144,-500.0,0.00038925,2]
[404890112,1770653439154,-18020.7586158,0.00038925,2]
[404890113,1770653439164,-288.0,0.00039036,7]
[404890114,1770653439174,-500.0,0.00039142,2]
[404890115,1770653439184,-288.0,0.00039184,2]
[404890116,1770653439194,-413.04989711,0.00039367,2]
[404890117,1770653439203,-500.0,0.00039416,2]
[404890118,1770653439213,-289.0,0.00039541,2]
[404890119,1770653439223,-288.0,0.00039683,7]
[404890120,1770653439233,-500.0,0.00039704,2]
[404890121,1770653439243,-288.0,0.00039759,2]
[404890122,1770653439253,-5546.50984512,0.00039787,2]
[404890123,1770653439263,-289.0,0.00039983,120]
[404890124,1770653439272,-2000.0,0.00039999,120]
[404890125,1770653439282,-250.0,0.0004,2]
[404890126,1770653439291,-200.0,0.0004,120]
[404890127,1770653439301,-288.0,0.0004004,7]
[404890128,1770653439311,-6908.52344982,0.00040204,2]
[404890129,1770653439321,-323.86559925,0.00040209,2]
[404890130,1770653439331,-720.0,0.00040269,60]
[404890131,1770653439342,-289.0,0.00040295,120]
[404890132,1770653439351,-289.0,0.00040395,2]
[404890133,1770653439361,-288.0,0.00040412,120]
[404890134,1770653439370,-1152.0,0.00040479,5]
[404890135,1770653439379,-202.72092055,0.0004065,120]
[404890136,1770653439389,-202.72092055,0.0004065,120]
[404890137,1770653439398,-184.062,0.0004065,2]
[404890138,1770653439407,-155.0,0.0004065,2]
[404890139,1770653439416,-288.0,0.00040856,2]
[404890140,1770653439426,-500.0,0.00040978,2]
[404890141,1770653439435,-288.0,0.00040978,2]
[404890142,1770653439445,-178.869185,0.00041225,2]
[404890143,1770653439454,-2559.1727997,0.00041522,2]
[404890144,1770653439464,-500.0,0.00042056,30]
[404890145,1770653439474,-250.0,0.000425,2]
[404890146,1770653439484,-178.869185,0.00042825,2]
[404890147,1770653439494,-151.0,0.00043583,2]
[404890148,1770653439503,-229.298564,0.00043583,2]
[404890149,1770653439512,-250.0,0.00043583,2]
[404890150,1770653439526,-250.0,0.00043583,2]
[404890151,1770653439535,-187.78006525,0.00043583,2]
[404890152,1770653439544,-194.72792766,0.00043583,2]
[404890153,1770653439554,-201.93286099,0.00043583,2]
[404890154,1770653439564,-250.0,0.00043583,2]
[404890155,1770653439573,-209.40437684,0.00043583,2]
[404890156,1770653439583,-250.0,0.00043583,2]
[404890157,1770653439593,-275.08097553,0.00043583,2]
[404890158,1770653439602,-1613.0,0.00043627,5]
[404890159,1770653439612,-200.0,0.00044,120]
[404890160,1770653439621,-864.0,0.00044295,60]
[404890161,1770653439631,-178.869185,0.00044426,2]
[404890162,1770653439643,-250.0,0.00045,2]
[404890163,1770653439654,-562.87,0.00045916,120]
[404890164,1770653439663,-864.78526983,0.00045934,60]
[404890165,1770653439672,-178.869185,0.00046026,2]
[404890166,1770653439683,-500.0,0.00046242,2]
[404890167,1770653439692,-2559.1727997,0.00046243,2]
[404890168,1770653439702,-562.87,0.00046268,120]
[404890169,1770653439712,-562.87,0.0004662,120]
[404890170,1770653439722,-562.87,0.00046973,120]
[404890171,1770653439731,-510.0,0.0004702,5]
[404890172,1770653439740,-562.87,0.00047325,120]
[404890173,1770653439750,-578.61832469,0.000475,2]
[404890174,1770653439760,-562.87,0.00047677,120]
[404890175,1770653439769,-562.87,0.00048029,120]
[404890176,1770653439779,-562.87,0.00048381,120]
[404890177,1770653439789,-1000.0,0.00048725,120]
[404890178,1770653439798,-562.87,0.00048733,120]
[404890179,1770653439808,-500.0,0.00049,120]
[404890180,1770653439818,-562.87,0.00049085,120]
[404890181,1770653439827,-186.397608,0.00049216,2]
[404890182,1770653439838,-500.0,0.00049314,2]
[404890183,1770653439847,-500.0,0.00049315,120]
[404890184,1770653439857,-500.0,0.00049315,120]
[404890185,1770653439866,-504.02229482,0.00049315,120]
[404890186,1770653439875,-502.92869266,0.00049315,120]
[404890187,1770653439885,-507.2854192,0.00049315,120]
[404890188,1770653439894,-502.57337799,0.00049315,120]
[404890189,1770653439904,-505.03409457,0.00049315,120]
[404890190,1770653439913,-500.0,0.00049315,120]
[404890191,1770653439923,-541.08238246,0.00049315,120]
[404890192,1770653439933,-500.0,0.00049315,120]
[404890193,1770653439942,-500.0,0.00049315,120]
[404890194,1770653439952,-503.12800076,0.00049315,120]
[404890195,1770653439961,-158.58199034,0.00049315,120]
[404890196,1770653439971,-511.33055604,0.00049315,120]
[404890197,1770653439980,-189.83023233,0.00049315,120]
[404890198,1770653439990,-511.18253465,0.00049315,120]
[404890199,1770653440000,-189.90833044,0.00049315,120]
[404890200,1770653440009,-584.76911445,0.00049315,120]
[404890201,1770653440019,-502.53309437,0.00049315,120]
[404890202,1770653440028,-500.0,0.00049315,120]
[404890203,1770653440038,-500.0,0.00049315,120]
[404890204,1770653440049,-500.0,0.00049315,120]
[404890205,1770653440059,-500.0,0.00049315,120]
[404890206,1770653440069,-500.0,0.00049315,120]
[404890207,1770653440079,-500.0,0.00049315,120]
[404890208,1770653440092,-336.27698735,0.00049315,120]
[404890209,1770653440102,-500.0,0.00049315,7]
[404890210,1770653440112,-500.0,0.00049315,120]
[404890211,1770653440123,-500.0,0.00049315,120]
[404890212,1770653440133,-439.90680621,0.00049315,120]
[404890213,1770653440143,-282.46176837,0.00049315,120]
[404890214,1770653440152,-500.0,0.00049315,120]
[404890215,1770653440162,-646.99,0.00049315,120]
[404890216,1770653440172,-562.87,0.00049438,120]
[404890217,1770653440182,-302.85,0.00049589,120]
[404890218,1770653440192,-359.94,0.00049589,120]
[404890219,1770653440202,-646.99,0.00049589,120]
[404890220,1770653440215,-562.87,0.0004979,120]
[404890221,1770653440225,-646.99,0.00049863,120]
[404890222,1770653440234,-178.25383777,0.0005,30]
[404890226,1770653440243,-250.0,0.0005,2]
[404890227,1770653440253,-155.0,0.0005,120]
[404890228,1770653440262,-200.0,0.0005,120]
[404890229,1770653440271,-500.0,0.0005,120]
[404890230,1770653440281,-1602.21886774,0.0005,120]
[404890231,1770653440291,-646.99,0.00050136,120]
[404890232,1770653440301,-562.87,0.00050142,120]
[404890233,1770653440311,-646.99,0.0005041,120]
[404890234,1770653440323,-562.87,0.00050494,120]
[404890235,1770653440332,-646.99,0.00050684,120]
[404890236,1770653440344,-562.87,0.00050846,120]
[404890237,1770653440353,-646.99,0.00050958,120]
[404890238,1770653440363,-2559.1727997,0.00050964,2]
[404890239,1770653440372,-500.0,0.00051,120]
[404890240,1770653440382,-562.87,0.00051198,120]
[404890241,1770653440391,-646.99,0.00051232,120]
[404890242,1770653440401,-155.0,0.000515,120]
[404890243,1770653440410,-646.99,0.00051506,120]
[404890244,1770653440419,-562.87,0.0005155,120]
[404890245,1770653440429,-171.32,0.000517,14]
[404890247,1770653440440,-646.99,0.0005178,120]
[404890248,1770653440449,-562.87,0.00051903,120]
[404890249,1770653440458,-159.3344612,0.00051973,2]
[404890250,1770653440467,-500.0,0.00052,120]
[404890251,1770653440477,-646.99,0.00052054,120]
[404890252,1770653440487,-562.87,0.00052255,120]
[404890253,1770653440497,-646.99,0.00052328,120]
[404890254,1770653440507,-646.99,0.00052602,120]
[404890255,1770653440637,-562.87,0.00052607,120]
[404890256,1770653440649,-646.99,0.00052876,120]
[404890257,1770653440659,-557.21,0.00052959,120]
[404890258,1770653440668,-155.0,0.00053,120]
[404890259,1770653440679,-500.0,0.00053,120]
[404890260,1770653440690,-1844.11,0.00053,14]
[404890261,1770653440700,-646.99,0.0005315,120]
[404890262,1770653440710,-646.99,0.00053424,120]
[404890263,1770653440720,-1000.0,0.00053597,120]
[404890264,1770653440729,-244.0,0.00053597,120]
[404890265,1770653440739,-6114.80146173,0.00053625,2]
[404890266,1770653440749,-646.99,0.00053698,120]
[404890267,1770653440759,-646.99,0.00053972,120]
[404890268,1770653440768,-200.0,0.00054,120]
[404890269,1770653440777,-500.0,0.00054,120]
[404890270,1770653440786,-646.99,0.00054246,120]
[404890271,1770653440796,-313.0,0.00054322,2]
[404890272,1770653440805,-500.0,0.00054477,2]
[404890273,1770653440815,-155.0,0.000545,120]
[404890274,1770653440824,-646.99,0.0005452,120]
[404890275,1770653440834,-646.99,0.00054794,120]
[404890276,1770653440849,-312.0,0.0005488,2]
[404890277,1770653440859,-215.13231384,0.00054945,5]
[404890278,1770653440868,-190.18555995,0.00054945,5]
[404890279,1770653440878,-680.65029277,0.00054945,5]
[404890280,1770653440888,-1244.14675965,0.00054945,5]
[404890281,1770653440898,-500.0,0.00055,120]
[404890282,1770653440908,-646.99,0.00055068,120]
[404890283,1770653440918,-187.0,0.00055144,2]
[404890284,1770653440927,-646.99,0.00055342,120]
[404890285,1770653440936,-647.09152952,0.00055616,120]
[404890286,1770653440946,-187.0,0.00055702,2]
[404890287,1770653440956,-155.0,0.00056,120]
[404890288,1770653440966,-500.0,0.00056,120]
[404890289,1770653440975,-2719.87856993,0.0005622,5]
[404890290,1770653440984,-500.0,0.00057,120]
[404890291,1770653440994,-200.0,0.000575,113]
[404890292,1770653441004,-155.0,0.000575,120]
[404890293,1770653441013,-4971.61045158,0.00057959,5]
[404890294,1770653441023,-500.0,0.00058,120]
[404890295,1770653441032,-200.0,0.000585,116]
[404890296,1770653441041,-1000.0,0.00058957,120]
[404890297,1770653441051,-492.0,0.00058957,120]
[404890298,1770653441060,-500.0,0.00059,120]
[404890299,1770653441070,-155.0,0.00059,120]
[404890300,1770653441080,-1591.13960451,0.0005909,120]
[404890301,1770653441094,-500.0,0.00059141,2]
[404890302,1770653441103,-200.0,0.000595,119]
[404890303,1770653441113,-1844.11,0.000595,14]
[404890304,1770653441122,-250.0,0.00059999,60]
[404890305,1770653441132,-250.0,0.00059999,120]
[404890306,1770653441142,-174.61919141,0.00059999,60]
[404890307,1770653441152,-181.08010149,0.00059999,120]
[404890308,1770653441161,-250.0,0.00059999,60]
[404890309,1770653441170,-250.0,0.00059999,120]
[404890310,1770653441180,-500.0,0.0006,120]
[404890311,1770653441189,-200.0,0.0006,120]
[404890312,1770653441198,-250.0,0.00060273,90]
[404890313,1770653441208,-168.3888056,0.00060273,90]
[404890314,1770653441217,-250.0,0.00060273,90]
[404890315,1770653441226,-200.0,0.000605,120]
[404890316,1770653441236,-155.0,0.000605,120]
[404890317,1770653441245,-500.0,0.00061,120]
[404890318,1770653441254,-200.0,0.000615,120]
[404890319,1770653441263,-500.0,0.00062,120]
[404890320,1770653441272,-155.0,0.00062,120]
[404890321,1770653441282,-500.0,0.00063,120]
[404890322,1770653441291,-155.0,0.000635,120]
[404890323,1770653441301,-500.0,0.00064,120]
[404890324,1770653441310,-800.0,0.00064727,60]
[404890325,1770653441319,-800.0,0.0006476,60]
[404890326,1770653441328,-800.0,0.00064773,60]
[404890327,1770653441338,-800.0,0.00064774,60]
[404890328,1770653441348,-626.86365582,0.00064808,60]
[404890329,1770653441357,-1000.0,0.00064853,120]
[404890330,1770653441367,-791.0,0.00064853,120]
[404890331,1770653441377,-800.0,0.0006491,60]
[404890332,1770653441386,-800.0,0.00064917,60]
[404890333,1770653441396,-800.0,0.00064974,60]
[404890334,1770653441406,-10000.0,0.0006498,120]
[404890335,1770653441415,-250.0,0.00064999,30]
[404890336,1770653441426,-500.0,0.00064999,2]
[404890337,1770653441435,-162.380719,0.00064999,30]
[404890338,1770653441445,-250.0,0.00064999,30]
[404890339,1770653441455,-500.0,0.00065,120]
[404890340,1770653441464,-155.0,0.00065,120]
[404890341,1770653441473,-500.0,0.00066,120]
[404890342,1770653441483,-155.0,0.000665,120]
[404890343,1770653441492,-1844.11,0.000665,14]
[404890344,1770653441502,-500.0,0.00067,120]
[404890345,1770653441511,-250.0,0.00067199,120]
[404890346,1770653441520,-156.587,0.00067199,120]
[404890347,1770653441530,-546.82403368,0.00067199,120]
[404890348,1770653441539,-250.0,0.00067199,120]
[404890349,1770653441548,-250.0,0.00067399,60]
[404890350,1770653441557,-151.0,0.00067399,60]
[404890351,1770653441567,-500.0,0.00067399,60]
[404890352,1770653441576,-250.0,0.00067399,60]
[404890353,1770653441588,-968.29547208,0.000674,60]
[404890354,1770653441597,-155.0,0.00068,120]
[404890355,1770653441608,-500.0,0.00068,120]
[404890356,1770653441619,-1470.32726045,0.00068493,30]
[404890357,1770653441628,-1470.32726045,0.00068493,30]
[404890358,1770653441641,-500.0,0.00069,120]
[404890359,1770653441655,-309.30611,0.000694,120]
[404890360,1770653441664,-155.0,0.000695,120]
[404890361,1770653441674,-2000.0,0.000699,120]
[404890362,1770653441683,-500.0,0.000699,120]
[404890363,1770653441692,-200.0,0.0007,120]
[404890364,1770653441701,-500.0,0.00071,120]
[404890365,1770653441711,-155.0,0.00071,120]
[404890366,1770653441722,-957.0,0.00071338,120]
[404890367,1770653441732,-200.0,0.00072,120]
[404890368,1770653441741,-500.0,0.00072,120]
[404890369,1770653441752,-155.0,0.000725,120]
[404890370,1770653441761,-100000.0,0.0007299,2]
[404890371,1770653441771,-500.0,0.00072999,2]
[404890372,1770653441780,-11410.85415356,0.00073,120]
[404890373,1770653441790,-500.0,0.00073,120]
[404890374,1770653441799,-1844.11,0.00073,14]
[404890375,1770653441809,-9160.65752729,0.0007325,2]
[404890376,1770653441818,-155.0,0.00074,120]
[404890377,1770653441828,-500.0,0.00074899,2]
[404890378,1770653441838,-2000.0,0.000749,120]
[404890379,1770653441848,-513.73,0.00075,60]
[404890380,1770653441858,-500.0,0.00075,120]
[404890381,1770653441867,-155.0,0.000755,120]
[404890382,1770653441877,-584.22952258,0.00075989,2]
[404890383,1770653441886,-172.0,0.00077,120]
[404890384,1770653441896,-500.0,0.00077,120]
[404890385,1770653441905,-500.0,0.00079,120]
[404890386,1770653441915,-500.0,0.000799,120]
[404890387,1770653441924,-200.0,0.0008,120]
[404890388,1770653441934,-600.0,0.0008,30]
[404890389,1770653441943,-158.0,0.0008,120]
[404890390,1770653441953,-359.758641,0.0008,120]
[404890391,1770653441962,-2000.0,0.000809,120]
[404890392,1770653441972,-500.0,0.00081,120]
[404890393,1770653441981,-500.0,0.00083,120]
[404890394,1770653441990,-500.0,0.00085,120]
[404890395,1770653441999,-200.0,0.00085313,120]
[404890396,1770653442009,-200.0,0.00085313,120]
[404890397,1770653442018,-200.0,0.00085313,120]
[404890398,1770653442027,-100000.0,0.00086788,120]
[404890399,1770653442036,-200.0,0.00086788,120]
[404890400,1770653442045,-200.0,0.00086788,120]
[404890401,1770653442055,-200.0,0.00086788,120]
[404890402,1770653442065,-200.0,0.00086788,120]
[404890403,1770653442074,-200.0,0.00086788,120]
[404890404,1770653442084,-200.0,0.00086788,120]
[404890405,1770653442095,-200.0,0.00086788,120]
[404890406,1770653442104,-200.0,0.00086788,120]
[404890407,1770653442114,-200.0,0.00086788,120]
[404890408,1770653442123,-204.191715,0.00086788,120]
[404890410,1770653442132,-1000.0,0.000869,120]
[404890412,1770653442141,-1562.11,0.000869,30]
[404890413,1770653442151,-500.0,0.00087,120]
[404890415,1770653442160,-200.0,0.00088463,120]
[404890416,1770653442170,-200.0,0.00088463,120]
[404890418,1770653442180,-200.0,0.00088463,120]
[404890420,1770653442189,-1210.83330739,0.00088875,60]
[404890422,1770653442199,-500.0,0.00089,120]
[404890424,1770653442208,-310.0,0.0008981,7]
[404890426,1770653442217,-500.0,0.000899,120]
[404890427,1770653442227,-600.0,0.0009,120]
[404890428,1770653442236,-1000.0,0.0009,120]
[404890429,1770653442245,-5001.05158491,0.0009,120]
[404890430,1770653442255,-186.0,0.00090632,7]
[404890431,1770653442263,-500.0,0.00091,120]
[404890432,1770653442273,-1000.0,0.000929,120]
[404890433,1770653442282,-1562.11,0.000929,30]
[404890434,1770653442291,-500.0,0.00093,120]
[404890435,1770653442300,-300.0,0.0009431,2]
[404890436,1770653442309,-598.17471261,0.0009488,60]
[404890437,1770653442319,-500.0,0.00095,120]
[404890438,1770653442328,-180.0,0.00095132,2]
[404890439,1770653442338,-299.0,0.0009589,120]
[404890440,1770653442348,-299.0,0.0009589,120]
[404890441,1770653442357,-299.0,0.0009589,120]
[404890442,1770653442366,-299.0,0.0009589,120]
[404890443,1770653442376,-299.0,0.0009589,120]
[404890444,1770653442385,-299.0,0.0009589,120]
[404890445,1770653442394,-299.0,0.0009589,120]
[404890446,1770653442404,-299.0,0.0009589,120]
[404890447,1770653442413,-299.0,0.0009589,120]
[404890448,1770653442423,-299.0,0.0009589,120]
[404890449,1770653442434,-299.0,0.0009589,120]
[404890450,1770653442445,-299.0,0.0009589,120]
[404890451,1770653442454,-299.0,0.0009589,120]
[404890452,1770653442464,-299.0,0.0009589,120]
[404890453,1770653442476,-299.0,0.0009589,120]
[404890454,1770653442486,-299.0,0.0009589,120]
[404890455,1770653442495,-299.0,0.0009589,120]
[404890456,1770653442505,-299.0,0.0009589,120]
[404890457,1770653442514,-299.0,0.0009589,120]
[404890458,1770653442523,-299.0,0.0009589,120]
[404890459,1770653442532,-299.0,0.0009589,120]
[404890460,1770653442541,-299.0,0.0009589,120]
[404890461,1770653442550,-299.0,0.0009589,120]
[404890462,1770653442559,-299.0,0.0009589,120]
[404890463,1770653442568,-299.0,0.0009589,120]
[404890464,1770653442577,-299.0,0.0009589,120]
[404890465,1770653442586,-299.0,0.0009589,120]
[404890466,1770653442595,-299.0,0.0009589,120]
[404890467,1770653442604,-299.0,0.0009589,120]
[404890468,1770653442613,-299.0,0.0009589,120]
[404890469,1770653442622,-299.0,0.0009589,120]
[404890470,1770653442631,-299.0,0.0009589,120]
[404890471,1770653442646,-299.0,0.0009589,120]
[404890472,1770653442655,-299.0,0.0009589,120]
[404890473,1770653442664,-299.0,0.0009589,120]
[404890474,1770653442674,-299.0,0.0009589,120]
[404890475,1770653442684,-299.0,0.0009589,120]
[404890476,1770653442693,-299.0,0.0009589,120]
[404890477,1770653442702,-299.0,0.0009589,120]
[404890478,1770653442711,-299.0,0.0009589,120]
[404890479,1770653442722,-299.0,0.0009589,120]
[404890480,1770653442731,-299.0,0.0009589,120]
[404890481,1770653442742,-299.0,0.0009589,120]
[404890482,1770653442751,-299.0,0.0009589,120]
[404890483,1770653442760,-299.0,0.0009589,120]
[404890484,1770653442769,-299.0,0.0009589,120]
[404890485,1770653442777,-299.0,0.0009589,120]
[404890486,1770653442786,-299.0,0.0009589,120]
[404890487,1770653442795,-299.0,0.0009589,120]
[404890488,1770653442805,-299.0,0.0009589,120]
[404890489,1770653442814,-299.0,0.0009589,120]
[404890490,1770653442823,-299.0,0.0009589,120]
[404890491,1770653442832,-299.0,0.0009589,120]
[404890492,1770653442843,-299.0,0.0009589,120]
[404890493,1770653442853,-6071.0905601,0.000975,30]
[404890494,1770653442862,-1000.0,0.00098,120]
[404890495,1770653442871,-1666.04551839,0.000985,120]
[404890496,1770653442880,-1562.11,0.000985,30]
[404890497,1770653442890,-10000.0,0.000988,120]
[404890498,1770653442899,-1000.0,0.000989,120]
[404890499,1770653442908,-276.94,0.00099077,120]
[404890500,1770653442918,-500.0,0.000999,120]
[404890501,1770653442927,-11773.0,0.000999,120]
[404890502,1770653442936,-1000.0,0.00099999,120]
[404890503,1770653442946,-1257.26383152,0.001,120]
[404890504,1770653442956,-200.0,0.001,120]
[404890505,1770653442965,-131442.44454497,0.001,2]
[404890506,1770653443006,-154257.55545503,0.001,2]
[404890507,1770653443016,-216.83003172,0.001,120]
[404890508,1770653443026,-1000.0,0.001,120]
[404890509,1770653443036,-631.92428655,0.001,30]
[404890510,1770653443046,-7995.07875108,0.001,120]